[Event "11th LCC Super Blitz 2019"]
[Site "London"]
[Date "2019.12.08"]
[Round "10.8"]
[White "Eames, Robert S"]
[Black "Rahman, Asad"]
[Result "1/2-1/2"]
[ECO "B54"]
[WhiteElo "2166"]
[BlackElo "1923"]
[Annotator "NA"]
[PlyCount "74"]
[EventDate "2019.12.08"]
[EventType "swiss"]
[EventCountry "ENG"]
[SourceTitle "playchess.com"]
[Source "ChessBase"]
[SourceQuality "1"]
[TimeControl "180+2"]

1. e4 {[%emt 0:00:00]} c5 {[%emt 0:00:00]} 2. Nf3 {[%emt 0:00:01]} Nc6 {[%emt 0:00:00]} 3. d4 {[%emt 0:00:02]} cxd4 {[%emt 0:00:01]} 4. Nxd4 {[%emt 0:00:01]} d6 {[%emt 0:00:01]} 5. c4 {[%emt 0:00:01]} Nf6 {[%emt 0:00:01]} 6. Nc3 {[%emt 0:00:01]} e6 {[%emt 0:00:01]} 7. Be2 {[%emt 0:00:03]} Be7 {[%emt 0:00:01]} 8. Be3 {[%emt 0:00:03]} a6 {[%emt 0:00:02]} 9. O-O {[%emt 0:00:02]} Bd7 {[%emt 0:00:00]} 10. Qd2 {[%emt 0:00:03]} O-O {[%emt 0:00:04]} 11. f3 {[%emt 0:00:02]} Rc8 {[%emt 0:00:02]} 12. Rac1 {[%emt 0:00:02]} Ne5 {[%emt 0:00:02]} 13. b3 {[%emt 0:00:02]} Ne8 {[%emt 0:00:23]} 14. Rfd1 {[%emt 0:00:04]} f5 {[%emt 0:00:04]} 15. exf5 {[%emt 0:00:06]} exf5 {[%emt 0:00:01]} 16. Nd5 {[%emt 0:00:19]} Kh8 {[%emt 0:00:05]} 17. Nxe7 {[%emt 0:00:14]} Qxe7 {[%emt 0:00:01]} 18. Bg5 {[%emt 0:00:02]} Qf7 {[%emt 0:00:09]} 19. f4 {[%emt 0:00:09]} Nc6 {[%emt 0:00:10]} 20. Bf3 {[%emt 0:00:15]} Nxd4 {[%emt 0:00:06]} 21. Qxd4 {[%emt 0:00:03]} Bc6 {[%emt 0:00:01]} 22. Bxc6 {[%emt 0:00:12]} bxc6 {[%emt 0:00:01]} 23. Re1 {[%emt 0:00:02]} Qg6 {[%emt 0:00:14]} 24. Re7 {[%emt 0:00:17]} h6 {[%emt 0:00:06]} 25. Bh4 {[%emt 0:00:05]} Rf7 {[%emt 0:00:02]} 26. Rce1 {[%emt 0:00:12]} Rxe7 {[%emt 0:00:02]} 27. Rxe7 {[%emt 0:00:01]} Qg4 {[%emt 0:00:01]} 28. g3 {[%emt 0:00:17]} c5 {[%emt 0:00:16]} 29. Qe3 {[%emt 0:00:18]} Nc7 {[%emt 0:00:26]} 30. Qc3 {[%emt 0:00:11]} d5 {[%emt 0:00:08]} 31. Qe1 {[%emt 0:00:28]} d4 {[%emt 0:00:08]} 32. Qe5 {[%emt 0:00:09]} d3 {[%emt 0:01:03]} 33. Rxc7 {[%emt 0:00:02]} Rxc7 {[%emt 0:00:00]} 34. Qxc7 {[%emt 0:00:02]} Qd1+ {[%emt 0:00:01]} 35. Kg2 {[%emt 0:00:04]} Qe2+ {[%emt 0:00:01]} 36. Kh3 {[%emt 0:00:05]} Qg4+ {[%emt 0:00:00]} 37. Kg2 Qe2+ 1/2-1/2

[Event "11th LCC Super Blitz 2019"]
[Site "London"]
[Date "2019.12.08"]
[Round "10.8"]
[White "Dhemrait, Jagdeep"]
[Black "Pappelis, Dimitrios"]
[Result "0-1"]
[ECO "B23"]
[WhiteElo "1834"]
[BlackElo "2160"]
[Annotator "NA"]
[PlyCount "58"]
[EventDate "2019.12.08"]
[EventType "swiss"]
[EventCountry "ENG"]
[SourceTitle "playchess.com"]
[Source "ChessBase"]
[SourceQuality "1"]
[TimeControl "180+2"]

1. e4 {[%emt 0:00:00]} c5 {[%emt 0:00:00]} 2. Nc3 {[%emt 0:00:00]} e6 {[%emt 0:00:00]} 3. f4 {[%emt 0:00:01]} d5 {[%emt 0:00:00]} 4. d3 {[%emt 0:00:02]} dxe4 {[%emt 0:00:05]} 5. dxe4 {[%emt 0:00:01]} Qxd1+ {[%emt 0:00:01]} 6. Nxd1 {[%emt 0:00:02]} Nc6 {[%emt 0:00:01]} 7. Nf3 {[%emt 0:00:08]} Nf6 {[%emt 0:00:07]} 8. Bd3 {[%emt 0:00:00]} a6 {[%emt 0:00:07]} 9. a4 {[%emt 0:00:04]} c4 {[%emt 0:00:13]} 10. Bxc4 {[%emt 0:00:05]} Nxe4 {[%emt 0:00:01]} 11. O-O {[%emt 0:00:16]} Bc5+ {[%emt 0:00:06]} 12. Be3 {[%emt 0:00:02]} O-O {[%emt 0:00:14]} 13. Bxc5 Nxc5 {[%emt 0:00:01]} 14. Nc3 {[%emt 0:00:12]} Bd7 {[%emt 0:00:21]} 15. Rfd1 {[%emt 0:00:10]} Rfd8 {[%emt 0:00:00]} 16. b3 {[%emt 0:00:16]} Be8 {[%emt 0:00:06]} 17. Rxd8 {[%emt 0:00:27]} Rxd8 {[%emt 0:00:00]} 18. Rd1 {[%emt 0:00:02]} Rxd1+ {[%emt 0:00:09]} 19. Nxd1 {[%emt 0:00:01]} Ne4 {[%emt 0:00:07]} 20. Bd3 {[%emt 0:00:16]} Nc5 {[%emt 0:00:02]} 21. Bc4 {[%emt 0:00:05]} Ne4 {[%emt 0:00:01]} 22. Bd3 {[%emt 0:00:06]} Nf6 {[%emt 0:00:03]} 23. c3 {[%emt 0:00:10]} Kf8 {[%emt 0:00:03]} 24. Ng5 {[%emt 0:00:07]} h6 {[%emt 0:00:01]} 25. Ne4 {[%emt 0:00:02]} Nd5 {[%emt 0:00:09]} 26. g3 {[%emt 0:00:09]} Ke7 {[%emt 0:00:02]} 27. Nc5 {[%emt 0:00:07]} b6 {[%emt 0:00:19]} 28. Nxa6 {[%emt 0:00:13]} Kd6 {[%emt 0:00:26]} 29. Kf2 {[%emt 0:00:02]} Ke7 {[%emt 0:00:02]} 0-1

[Event "11th LCC Super Blitz 2019"]
[Site "London"]
[Date "2019.12.08"]
[Round "10.9"]
[White "Rushbrooke, Remy"]
[Black "Iyengar, Ilya"]
[Result "1/2-1/2"]
[ECO "D01"]
[WhiteElo "1877"]
[BlackElo "1984"]
[Annotator "NA"]
[PlyCount "110"]
[EventDate "2019.12.08"]
[EventType "swiss"]
[EventCountry "ENG"]
[SourceTitle "playchess.com"]
[Source "ChessBase"]
[SourceQuality "1"]
[TimeControl "180+2"]

1. d4 {[%emt 0:00:00]} Nf6 {[%emt 0:00:00]} 2. Nc3 {[%emt 0:00:00]} d5 {[%emt 0:00:00]} 3. Bg5 {[%emt 0:00:01]} Nbd7 {[%emt 0:00:01]} 4. e3 {[%emt 0:00:02]} h6 {[%emt 0:00:04]} 5. Bh4 {[%emt 0:00:02]} e6 {[%emt 0:00:07]} 6. a3 {[%emt 0:00:03]} a6 {[%emt 0:00:03]} 7. f4 {[%emt 0:00:15]} c5 {[%emt 0:00:03]} 8. Nf3 {[%emt 0:00:01]} Qb6 {[%emt 0:00:18]} 9. Ne5 {[%emt 0:00:24]} Be7 {[%emt 0:00:52]} 10. Be2 {[%emt 0:00:01]} O-O {[%emt 0:00:02]} 11. O-O {[%emt 0:00:03]} Re8 {[%emt 0:00:15]} 12. Kh1 {[%emt 0:00:06]} Nf8 {[%emt 0:00:44]} 13. Bf2 {[%emt 0:00:33]} cxd4 {[%emt 0:00:06]} 14. exd4 {[%emt 0:00:05]} Bd7 {[%emt 0:00:07]} 15. b3 {[%emt 0:00:07]} Rac8 {[%emt 0:00:03]} 16. Qd2 {[%emt 0:00:12]} Qc7 {[%emt 0:00:01]} 17. Be1 {[%emt 0:00:15]} b5 {[%emt 0:00:10]} 18. Bd3 {[%emt 0:00:09]} b4 {[%emt 0:00:02]} 19. Ne2 {[%emt 0:00:11]} bxa3 {[%emt 0:00:02]} 20. Bxa6 {[%emt 0:00:06]} Ra8 {[%emt 0:00:01]} 21. Bd3 {[%emt 0:00:01]} Qb7 {[%emt 0:00:06]} 22. Ng3 {[%emt 0:00:05]} Rec8 {[%emt 0:00:03]} 23. f5 {[%emt 0:00:06]} exf5 {[%emt 0:00:05]} 24. Nxf5 {[%emt 0:00:06]} Bxf5 {[%emt 0:00:01]} 25. Bxf5 {[%emt 0:00:01]} Rc7 {[%emt 0:00:05]} 26. Rf3 {[%emt 0:00:11]} Ne6 {[%emt 0:00:03]} 27. Bxe6 {[%emt 0:00:04]} fxe6 {[%emt 0:00:01]} 28. Rg3 {[%emt 0:00:03]} Kh7 {[%emt 0:00:07]} 29. Qe2 {[%emt 0:00:25]} Ne4 {[%emt 0:00:01]} 30. Rd3 {[%emt 0:00:01]} Bf6 {[%emt 0:00:03]} 31. Qg4 {[%emt 0:00:03]} Bxe5 {[%emt 0:00:06]} 32. dxe5 {[%emt 0:00:01]} Re7 {[%emt 0:00:01]} 33. c4 {[%emt 0:00:05]} a2 {[%emt 0:00:05]} 34. cxd5 {[%emt 0:00:01]} exd5 {[%emt 0:00:02]} 35. Bh4 {[%emt 0:00:04]} Rxe5 {[%emt 0:00:01]} 36. Bg3 {[%emt 0:00:03]} Rg5 {[%emt 0:00:04]} 37. Qe6 {[%emt 0:00:05]} Nxg3+ {[%emt 0:00:05]} 38. hxg3 {[%emt 0:00:01]} Qa7 {[%emt 0:00:09]} 39. Rxd5 {[%emt 0:00:05]} Rxd5 {[%emt 0:00:02]} 40. Qxd5 {[%emt 0:00:01]} Rb8 {[%emt 0:00:03]} 41. Qd3+ {[%emt 0:00:04]} Kh8 {[%emt 0:00:01]} 42. Qc2 {[%emt 0:00:03]} Ra8 {[%emt 0:00:01]} 43. Qd3 {[%emt 0:00:01]} Qa3 {[%emt 0:00:03]} 44. Qc2 {[%emt 0:00:02]} Ra5 {[%emt 0:00:03]} 45. g4 {[%emt 0:00:04]} Ra8 {[%emt 0:00:05]} 46. g3 {[%emt 0:00:02]} Qa7 {[%emt 0:00:00]} 47. Kh2 {[%emt 0:00:01]} Qa3 {[%emt 0:00:00]} 48. Kh3 {[%emt 0:00:03]} Qa7 {[%emt 0:00:05]} 49. Kh2 {[%emt 0:00:01]} Qa5 {[%emt 0:00:02]} 50. Kh3 {[%emt 0:00:02]} Ra7 {[%emt 0:00:03]} 51. Rf1 {[%emt 0:00:04]} Ra8 {[%emt 0:00:02]} 52. Ra1 {[%emt 0:00:01]} Qa7 {[%emt 0:00:01]} 53. Kh2 {[%emt 0:00:01]} Qa3 {[%emt 0:00:01]} 54. Kh3 {[%emt 0:00:02]} Qa7 {[%emt 0:00:01]} 55. Kh2 {[%emt 0:00:01]} Qa3 {[%emt 0:00:11]} 1/2-1/2

[Event "11th LCC Super Blitz 2019"]
[Site "London"]
[Date "2019.12.08"]
[Round "10.9"]
[White "Kirupakaran, Vishnu"]
[Black "Sandhu, Manvith"]
[Result "1-0"]
[ECO "B08"]
[WhiteElo "1871"]
[BlackElo "1673"]
[Annotator "NA"]
[PlyCount "75"]
[EventDate "2019.12.08"]
[EventType "swiss"]
[EventCountry "ENG"]
[SourceTitle "playchess.com"]
[Source "ChessBase"]
[SourceQuality "1"]
[TimeControl "180+2"]

1. e4 {[%emt 0:00:00]} Nc6 {[%emt 0:00:00]} 2. Nf3 {[%emt 0:00:02]} d6 {[%emt 0:00:01]} 3. d4 {[%emt 0:00:04]} Nf6 {[%emt 0:00:00]} 4. Nc3 {[%emt 0:00:09]} g6 {[%emt 0:00:01]} 5. Bc4 {[%emt 0:00:06]} Bg7 {[%emt 0:00:03]} 6. O-O {[%emt 0:00:03]} O-O {[%emt 0:00:02]} 7. h3 {[%emt 0:00:26]} a6 {[%emt 0:00:02]} 8. a3 {[%emt 0:00:05]} b5 {[%emt 0:00:08]} 9. Ba2 {[%emt 0:00:01]} Bb7 {[%emt 0:00:01]} 10. Re1 {[%emt 0:00:02]} Re8 {[%emt 0:00:24]} 11. Ng5 {[%emt 0:00:21]} e6 {[%emt 0:00:14]} 12. Qd3 {[%emt 0:00:27]} Nd7 {[%emt 0:00:18]} 13. Ne2 {[%emt 0:00:11]} Nf6 {[%emt 0:00:13]} 14. c3 {[%emt 0:00:13]} Nb8 {[%emt 0:00:18]} 15. Ng3 {[%emt 0:00:05]} Nbd7 {[%emt 0:00:08]} 16. f4 {[%emt 0:00:39]} h6 {[%emt 0:00:37]} 17. Nf3 {[%emt 0:00:01]} c5 {[%emt 0:00:17]} 18. c4 {[%emt 0:00:17]} cxd4 {[%emt 0:00:05]} 19. cxb5 {[%emt 0:00:01]} Nc5 {[%emt 0:00:07]} 20. Qxd4 {[%emt 0:00:04]} axb5 {[%emt 0:00:04]} 21. e5 {[%emt 0:00:03]} dxe5 {[%emt 0:00:08]} 22. Qxc5 {[%emt 0:00:04]} exf4 {[%emt 0:00:09]} 23. Ne2 {[%emt 0:00:08]} Nd5 {[%emt 0:00:07]} 24. Bxd5 {[%emt 0:00:06]} Bxd5 {[%emt 0:00:03]} 25. Nxf4 {[%emt 0:00:01]} Bxf3 {[%emt 0:00:03]} 26. gxf3 {[%emt 0:00:01]} Bd4+ {[%emt 0:00:02]} 27. Be3 {[%emt 0:00:04]} Bxc5 {[%emt 0:00:01]} 28. Bxc5 {[%emt 0:00:01]} Qc7 {[%emt 0:00:03]} 29. Be3 {[%emt 0:00:03]} e5 {[%emt 0:00:05]} 30. Nd5 {[%emt 0:00:02]} Qd7 {[%emt 0:00:02]} 31. Nf6+ {[%emt 0:00:01]} Kg7 {[%emt 0:00:02]} 32. Nxd7 {[%emt 0:00:02]} Red8 {[%emt 0:00:01]} 33. Nxe5 {[%emt 0:00:02]} f5 {[%emt 0:00:03]} 34. Rad1 {[%emt 0:00:03]} Re8 {[%emt 0:00:01]} 35. Bd4 {[%emt 0:00:02]} Rad8 {[%emt 0:00:04]} 36. Nc6+ {[%emt 0:00:01]} Rxd4 {[%emt 0:00:04]} 37. Nxd4 {[%emt 0:00:02]} Kf6 {[%emt 0:00:03]} 38. Rxe8 {[%emt 0:00:01]} 1-0

[Event "11th LCC Super Blitz 2019"]
[Site "London"]
[Date "2019.12.08"]
[Round "10.9"]
[White "Manmay Chopra"]
[Black "Orlovska, Madara"]
[Result "0-1"]
[ECO "A03"]
[WhiteElo "1354"]
[BlackElo "2072"]
[Annotator "NA"]
[PlyCount "60"]
[EventDate "2019.12.08"]
[EventType "swiss"]
[EventCountry "ENG"]
[SourceTitle "playchess.com"]
[Source "ChessBase"]
[SourceQuality "1"]
[TimeControl "180+2"]

1. f4 {[%emt 0:03:21]} d5 {[%emt 0:00:02]} 2. Nf3 g6 3. e3 Bg7 {[%emt 0:00:01]} 4. d3 {[%emt 0:00:03]} f5 {[%emt 0:00:04]} 5. Be2 {[%emt 0:00:03]} Nf6 6. Nbd2 O-O {[%emt 0:00:02]} 7. Ne5 {[%emt 0:00:15]} Nfd7 {[%emt 0:00:06]} 8. d4 {[%emt 0:00:03]} Nxe5 {[%emt 0:00:02]} 9. dxe5 {[%emt 0:00:02]} c5 10. c3 {[%emt 0:00:02]} d4 {[%emt 0:00:06]} 11. Bc4+ {[%emt 0:00:01]} e6 12. exd4 {[%emt 0:00:11]} cxd4 {[%emt 0:00:01]} 13. Qb3 {[%emt 0:00:16]} Re8 {[%emt 0:00:17]} 14. O-O {[%emt 0:00:05]} Nc6 {[%emt 0:00:06]} 15. Bb5 {[%emt 0:00:25]} dxc3 {[%emt 0:00:13]} 16. Qxc3 {[%emt 0:00:20]} Qb6+ {[%emt 0:00:03]} 17. Kh1 {[%emt 0:00:05]} Qxb5 {[%emt 0:00:01]} 18. Nc4 {[%emt 0:00:05]} Bd7 {[%emt 0:00:10]} 19. Be3 {[%emt 0:00:07]} Qb4 {[%emt 0:00:01]} 20. Qc2 {[%emt 0:00:10]} Bf8 {[%emt 0:00:05]} 21. a3 {[%emt 0:00:04]} Qb5 {[%emt 0:00:07]} 22. a4 {[%emt 0:00:17]} Qb4 {[%emt 0:00:04]} 23. Rfd1 {[%emt 0:00:11]} Rad8 {[%emt 0:00:05]} 24. Rd3 {[%emt 0:00:31]} Na5 {[%emt 0:00:15]} 25. Bd2 {[%emt 0:00:15]} Qxc4 {[%emt 0:00:02]} 26. Rc3 {[%emt 0:00:05]} Qe4 {[%emt 0:00:04]} 27. Qc1 {[%emt 0:00:12]} Rc8 {[%emt 0:00:17]} 28. b4 Rxc3 {[%emt 0:00:03]} 29. Qxc3 Nc6 {[%emt 0:00:06]} 30. Re1 {[%emt 0:00:01]} Qxb4 {[%emt 0:00:05]} 0-1

[Event "11th LCC Super Blitz 2019"]
[Site "London"]
[Date "2019.12.08"]
[Round "10.10"]
[White "Patel, Rishi"]
[Black "Janula, Mariusz"]
[Result "1-0"]
[ECO "B52"]
[WhiteElo "1899"]
[BlackElo "1767"]
[Annotator "NA"]
[PlyCount "61"]
[EventDate "2019.12.08"]
[EventType "swiss"]
[EventCountry "ENG"]
[SourceTitle "playchess.com"]
[Source "ChessBase"]
[SourceQuality "1"]
[TimeControl "180+2"]

1. e4 {[%emt 0:00:00]} c5 {[%emt 0:00:00]} 2. Nf3 {[%emt 0:00:00]} d6 {[%emt 0:00:00]} 3. Bb5+ {[%emt 0:00:02]} Bd7 {[%emt 0:00:03]} 4. Bxd7+ {[%emt 0:00:02]} Qxd7 {[%emt 0:00:01]} 5. c3 {[%emt 0:00:00]} Nc6 {[%emt 0:00:02]} 6. O-O {[%emt 0:00:03]} Nf6 {[%emt 0:00:01]} 7. Re1 {[%emt 0:00:01]} g6 {[%emt 0:00:02]} 8. d4 {[%emt 0:00:01]} cxd4 {[%emt 0:00:03]} 9. cxd4 {[%emt 0:00:00]} Bg7 {[%emt 0:00:05]} 10. Nc3 {[%emt 0:00:02]} O-O {[%emt 0:00:02]} 11. h3 {[%emt 0:00:01]} Rac8 {[%emt 0:00:01]} 12. Be3 {[%emt 0:00:04]} a6 {[%emt 0:00:14]} 13. Rc1 {[%emt 0:00:01]} Rfe8 {[%emt 0:00:01]} 14. Qd2 {[%emt 0:00:10]} Na5 {[%emt 0:00:07]} 15. b3 {[%emt 0:00:01]} Nc6 {[%emt 0:00:06]} 16. Bh6 {[%emt 0:00:02]} Bh8 {[%emt 0:00:06]} 17. Qd3 {[%emt 0:00:19]} Nb4 {[%emt 0:00:15]} 18. Qe2 {[%emt 0:00:01]} b5 {[%emt 0:00:11]} 19. a3 {[%emt 0:00:19]} Nc6 {[%emt 0:00:02]} 20. e5 {[%emt 0:00:01]} dxe5 {[%emt 0:00:10]} 21. dxe5 {[%emt 0:00:01]} Nd5 {[%emt 0:00:06]} 22. Red1 {[%emt 0:00:16]} e6 {[%emt 0:00:01]} 23. Bg5 {[%emt 0:00:10]} f5 {[%emt 0:00:06]} 24. exf6 {[%emt 0:00:04]} Qf7 {[%emt 0:00:06]} 25. Nxd5 {[%emt 0:00:12]} exd5 {[%emt 0:00:02]} 26. Qd3 {[%emt 0:00:07]} Ne5 {[%emt 0:00:29]} 27. Nxe5 {[%emt 0:00:12]} Rxc1 {[%emt 0:00:18]} 28. Nxf7 {[%emt 0:00:01]} Rxd1+ {[%emt 0:00:02]} 29. Qxd1 {[%emt 0:00:02]} Kxf7 {[%emt 0:00:10]} 30. Qxd5+ {[%emt 0:00:01]} Kf8 {[%emt 0:00:05]} 31. Bh6+ {[%emt 0:00:03]} 1-0

[Event "11th LCC Super Blitz 2019"]
[Site "London"]
[Date "2019.12.08"]
[Round "10.10"]
[White "Phillips, David"]
[Black "Tombolis, Christopher"]
[Result "1-0"]
[ECO "A03"]
[WhiteElo "1810"]
[BlackElo "1655"]
[Annotator "NA"]
[PlyCount "43"]
[EventDate "2019.12.08"]
[EventType "swiss"]
[EventCountry "ENG"]
[SourceTitle "playchess.com"]
[Source "ChessBase"]
[SourceQuality "1"]
[TimeControl "180+2"]

1. b3 {[%emt 0:00:00]} d5 {[%emt 0:00:01]} 2. Bb2 {[%emt 0:00:02]} Nf6 {[%emt 0:00:06]} 3. f4 {[%emt 0:00:02]} Nc6 {[%emt 0:00:04]} 4. Nf3 {[%emt 0:00:03]} Bg4 {[%emt 0:00:01]} 5. e3 {[%emt 0:00:04]} e6 {[%emt 0:00:05]} 6. h3 {[%emt 0:00:09]} Bxf3 {[%emt 0:00:05]} 7. Qxf3 {[%emt 0:00:03]} a5 {[%emt 0:00:08]} 8. Bb5 {[%emt 0:00:04]} Be7 {[%emt 0:00:17]} 9. Bxc6+ {[%emt 0:00:14]} bxc6 {[%emt 0:00:00]} 10. a4 {[%emt 0:00:18]} c5 {[%emt 0:00:10]} 11. O-O {[%emt 0:00:05]} Qb8 {[%emt 0:00:12]} 12. d3 {[%emt 0:00:09]} h5 {[%emt 0:00:20]} 13. Nd2 {[%emt 0:00:08]} h4 {[%emt 0:00:03]} 14. e4 {[%emt 0:00:04]} Qb4 {[%emt 0:00:06]} 15. Rad1 {[%emt 0:00:17]} Rd8 {[%emt 0:00:18]} 16. Rfe1 {[%emt 0:00:33]} c6 {[%emt 0:00:17]} 17. f5 {[%emt 0:00:16]} dxe4 {[%emt 0:00:20]} 18. Nxe4 {[%emt 0:00:05]} Nxe4 {[%emt 0:00:16]} 19. Rxe4 {[%emt 0:00:06]} Qb6 {[%emt 0:00:05]} 20. fxe6 {[%emt 0:00:06]} c4+ {[%emt 0:00:01]} 21. Kh1 {[%emt 0:00:03]} cxd3 {[%emt 0:00:08]} 22. Qxf7# {[%emt 0:00:04]} 1-0

[Event "11th LCC Super Blitz 2019"]
[Site "London"]
[Date "2019.12.08"]
[Round "10.10"]
[White "Bergner, Matthias"]
[Black "Van Hoof, Alexander"]
[Result "0-1"]
[ECO "D30"]
[WhiteElo "1632"]
[BlackElo "1968"]
[Annotator "NA"]
[PlyCount "46"]
[EventDate "2019.12.08"]
[EventType "swiss"]
[EventCountry "ENG"]
[SourceTitle "playchess.com"]
[Source "ChessBase"]
[SourceQuality "1"]
[TimeControl "180+2"]

1. d4 {[%emt 0:00:00]} Nf6 {[%emt 0:00:01]} 2. c4 {[%emt 0:00:01]} c5 {[%emt 0:00:00]} 3. dxc5 {[%emt 0:00:03]} e6 {[%emt 0:00:15]} 4. Nf3 {[%emt 0:00:15]} Bxc5 {[%emt 0:00:06]} 5. e3 {[%emt 0:00:19]} d5 {[%emt 0:00:01]} 6. Be2 {[%emt 0:00:10]} Nc6 {[%emt 0:00:02]} 7. O-O {[%emt 0:00:04]} O-O {[%emt 0:00:02]} 8. b3 {[%emt 0:00:10]} d4 {[%emt 0:00:09]} 9. exd4 {[%emt 0:00:06]} Nxd4 {[%emt 0:00:01]} 10. Bb2 {[%emt 0:00:15]} Nxe2+ {[%emt 0:00:04]} 11. Qxe2 {[%emt 0:00:02]} Bd7 {[%emt 0:00:13]} 12. Rd1 {[%emt 0:00:02]} Qe7 {[%emt 0:00:01]} 13. Nc3 {[%emt 0:00:04]} Bc6 {[%emt 0:00:03]} 14. Rd2 {[%emt 0:00:16]} Rad8 {[%emt 0:00:01]} 15. Rad1 {[%emt 0:00:01]} Rxd2 {[%emt 0:00:02]} 16. Rxd2 {[%emt 0:00:05]} Rd8 {[%emt 0:00:01]} 17. Rxd8+ {[%emt 0:00:02]} Qxd8 {[%emt 0:00:01]} 18. Qd1 {[%emt 0:00:11]} Qc7 {[%emt 0:00:25]} 19. Ne1 {[%emt 0:00:17]} h6 {[%emt 0:00:03]} 20. a3 {[%emt 0:00:13]} Qf4 {[%emt 0:00:10]} 21. Qe2 {[%emt 0:00:14]} Ng4 {[%emt 0:00:04]} 22. Nd3 {[%emt 0:00:30]} Qxh2+ {[%emt 0:00:03]} 23. Kf1 {[%emt 0:00:07]} Qh1# {[%emt 0:00:01]} 0-1

[Event "11th LCC Super Blitz 2019"]
[Site "London"]
[Date "2019.12.08"]
[Round "10.11"]
[White "Zhao, Haolin"]
[Black "Vaidya, Raghav"]
[Result "1-0"]
[ECO "A02"]
[WhiteElo "1725"]
[BlackElo "1467"]
[Annotator "NA"]
[PlyCount "61"]
[EventDate "2019.12.08"]
[EventType "swiss"]
[EventCountry "ENG"]
[SourceTitle "playchess.com"]
[Source "ChessBase"]
[SourceQuality "1"]
[TimeControl "180+2"]

1. f4 {[%emt 0:00:00]} c5 {[%emt 0:00:00]} 2. b3 {[%emt 0:00:02]} g6 {[%emt 0:00:01]} 3. Bb2 {[%emt 0:00:01]} Nf6 {[%emt 0:00:01]} 4. Nf3 {[%emt 0:00:02]} Bg7 {[%emt 0:00:02]} 5. e3 {[%emt 0:00:03]} O-O {[%emt 0:00:03]} 6. Nc3 {[%emt 0:00:06]} Nc6 {[%emt 0:00:01]} 7. Bb5 {[%emt 0:00:02]} d6 {[%emt 0:00:03]} 8. Ne2 {[%emt 0:00:03]} a6 {[%emt 0:00:01]} 9. Bxc6 {[%emt 0:00:02]} bxc6 {[%emt 0:00:01]} 10. O-O {[%emt 0:00:03]} Re8 {[%emt 0:00:03]} 11. h3 {[%emt 0:00:02]} e6 {[%emt 0:00:21]} 12. Qe1 {[%emt 0:00:03]} Bb7 {[%emt 0:00:02]} 13. Qh4 {[%emt 0:00:05]} Nh5 {[%emt 0:00:10]} 14. Bxg7 {[%emt 0:00:11]} Qxh4 {[%emt 0:00:04]} 15. Nxh4 {[%emt 0:00:01]} Nxg7 {[%emt 0:00:01]} 16. c4 {[%emt 0:00:03]} d5 {[%emt 0:00:06]} 17. Nf3 {[%emt 0:00:02]} dxc4 {[%emt 0:00:07]} 18. bxc4 {[%emt 0:00:02]} Rad8 {[%emt 0:00:01]} 19. Rfd1 {[%emt 0:00:04]} f6 {[%emt 0:00:03]} 20. Rab1 {[%emt 0:00:10]} Rd7 {[%emt 0:00:07]} 21. Nc3 {[%emt 0:00:03]} e5 {[%emt 0:00:09]} 22. fxe5 {[%emt 0:00:04]} fxe5 {[%emt 0:00:01]} 23. Ne4 {[%emt 0:00:02]} Ba8 {[%emt 0:00:11]} 24. Nf6+ {[%emt 0:00:02]} Kh8 {[%emt 0:00:02]} 25. Nxd7 {[%emt 0:00:02]} Rd8 {[%emt 0:00:02]} 26. Nxc5 {[%emt 0:00:02]} e4 {[%emt 0:00:02]} 27. Nxe4 {[%emt 0:00:01]} Nf5 {[%emt 0:00:01]} 28. Kf2 {[%emt 0:00:05]} Nd6 {[%emt 0:00:02]} 29. Nxd6 {[%emt 0:00:01]} Rxd6 {[%emt 0:00:02]} 30. Rb8+ {[%emt 0:00:02]} Kg7 {[%emt 0:00:02]} 31. Rxa8 {[%emt 0:00:02]} 1-0

[Event "11th LCC Super Blitz 2019"]
[Site "London"]
[Date "2019.12.08"]
[Round "10.11"]
[White "Muhunthan, Charukgan"]
[Black "Young, Daniel J"]
[Result "0-1"]
[ECO "B92"]
[WhiteElo "1401"]
[BlackElo "1947"]
[Annotator "NA"]
[PlyCount "106"]
[EventDate "2019.12.08"]
[EventType "swiss"]
[EventCountry "ENG"]
[SourceTitle "playchess.com"]
[Source "ChessBase"]
[SourceQuality "1"]
[TimeControl "180+2"]

1. e4 {[%emt 0:04:08]} c5 2. Nf3 {[%emt 0:12:52]} d6 3. d4 cxd4 {[%emt 0:00:02]} 4. Nxd4 Nf6 5. Nc3 a6 6. Be3 {[%emt 0:00:05]} e5 7. Nb3 {[%emt 0:00:01]} Be6 8. f3 {[%emt 0:00:01]} Be7 9. Qd2 {[%emt 0:00:02]} O-O {[%emt 0:00:02]} 10. Be2 {[%emt 0:00:01]} Nbd7 {[%emt 0:00:04]} 11. g4 {[%emt 0:00:08]} b5 {[%emt 0:00:18]} 12. a3 {[%emt 0:00:01]} Nb6 {[%emt 0:00:05]} 13. h4 {[%emt 0:00:03]} Nc4 {[%emt 0:00:07]} 14. Bxc4 {[%emt 0:00:01]} bxc4 {[%emt 0:00:03]} 15. Nc1 {[%emt 0:00:02]} Rb8 {[%emt 0:00:27]} 16. Rb1 {[%emt 0:00:04]} d5 {[%emt 0:00:25]} 17. exd5 {[%emt 0:00:12]} Nxd5 {[%emt 0:00:02]} 18. g5 {[%emt 0:00:31]} Nxe3 {[%emt 0:00:15]} 19. Qxe3 {[%emt 0:00:01]} Qc7 {[%emt 0:00:10]} 20. N1a2 {[%emt 0:00:53]} Bc5 {[%emt 0:00:02]} 21. Qe2 {[%emt 0:00:02]} Rfd8 {[%emt 0:00:15]} 22. h5 {[%emt 0:00:38]} Bd4 {[%emt 0:00:28]} 23. g6 {[%emt 0:00:29]} h6 {[%emt 0:00:02]} 24. Rf1 {[%emt 0:00:19]} Qa5 {[%emt 0:00:06]} 25. f4 {[%emt 0:00:06]} Bxc3+ {[%emt 0:00:13]} 26. Nxc3 {[%emt 0:00:01]} Rxb2 {[%emt 0:00:04]} 27. Rxb2 {[%emt 0:00:03]} Qxc3+ {[%emt 0:00:01]} 28. Kf2 Qxb2 {[%emt 0:00:08]} 29. fxe5 {[%emt 0:00:06]} c3 {[%emt 0:00:08]} 30. gxf7+ {[%emt 0:00:04]} Bxf7 {[%emt 0:00:03]} 31. e6 Qb6+ {[%emt 0:00:07]} 32. Kg3 {[%emt 0:00:02]} Qxe6 {[%emt 0:00:04]} 33. Qxe6 {[%emt 0:00:01]} Bxe6 34. Rf3 {[%emt 0:00:01]} Rc8 {[%emt 0:00:06]} 35. Re3 Bf5 36. Re2 {[%emt 0:00:01]} Kf7 {[%emt 0:00:02]} 37. Kf4 Be6 {[%emt 0:00:03]} 38. Re3 {[%emt 0:00:01]} Rc4+ {[%emt 0:00:03]} 39. Kg3 {[%emt 0:00:01]} Rg4+ 40. Kh3 {[%emt 0:00:01]} Re4+ {[%emt 0:00:01]} 41. Kg2 Rxe3 42. Kf2 {[%emt 0:00:01]} Rh3 43. Kg2 Rxh5 44. Kf1 {[%emt 0:00:02]} Rh2 {[%emt 0:00:01]} 45. Ke1 Rxc2 {[%emt 0:00:01]} 46. Kd1 Ra2 47. Kc1 {[%emt 0:00:02]} Bf5 {[%emt 0:00:04]} 48. Kd1 {[%emt 0:00:04]} Ra1+ 49. Ke2 {[%emt 0:00:01]} c2 50. Ke3 c1=Q+ {[%emt 0:00:04]} 51. Kd4 {[%emt 0:00:02]} Qd2+ {[%emt 0:00:03]} 52. Ke5 Re1+ {[%emt 0:00:03]} 53. Kxf5 {[%emt 0:00:01]} Qf2+ 0-1